bitfinex/quotes_BTCUSD_20220303
["timestamp","ask_amount","ask_price","bid_price","bid_amount"]
[1646327735240,0.057958,42426.0,42421.0,0.18178787]
[1646327735445,0.057958,42426.0,42420.0,0.18840448]
[1646327736294,0.057958,42426.0,42420.0,0.18440448]
[1646327736687,0.057958,42426.0,42420.0,0.00469031]
[1646327737389,0.241313,42422.0,42420.0,0.00469031]
[1646327737586,0.05897,42422.0,42420.0,0.00469031]
[1646327741039,0.05897,42422.0,42420.0,0.00769031]
[1646327742240,0.05897,42422.0,42420.0,0.00469031]
[1646327743041,0.05897,42422.0,42420.0,0.00669031]
[1646327744316,0.05897,42422.0,42420.0,0.00469031]
[1646327744715,0.05897,42422.0,42413.0,0.0022]
[1646327744716,0.46667024,42421.0,42413.0,0.0022]
[1646327744916,0.058981,42418.0,42413.0,0.00234495]
[1646327745115,0.3,42417.0,42413.0,0.00263485]
[1646327745316,0.361823,42416.0,42413.0,0.00043485]
[1646327745516,0.420805,42416.0,42413.0,0.00043485]
[1646327745714,0.420805,42416.0,42413.0,0.00014495]
[1646327745916,0.420805,42416.0,42412.0,0.0011]
[1646327747075,0.060982,42416.0,42412.0,0.0011]
[1646327748276,0.058982,42416.0,42412.0,0.0011]
[1646327749078,0.061982,42416.0,42412.0,0.0011]
[1646327749678,0.23243024,42421.0,42420.0,0.0011]
[1646327749679,0.006785,42421.0,42420.0,0.0011]
[1646327749878,0.368608,42421.0,42420.0,0.0011]
[1646327750076,0.361823,42421.0,42420.0,0.0011]
[1646327751507,0.720801,42421.0,42417.0,0.0005]
[1646327752307,0.720801,42421.0,42417.0,0.00057232]
[1646327752506,0.361823,42419.0,42417.0,0.00057232]
[1646327752706,0.3,42418.0,42417.0,0.00064464]
[1646327752906,0.661823,42418.0,42417.0,0.00071696]
[1646327753308,0.661823,42418.0,42417.0,0.00064464]
[1646327753506,0.661823,42418.0,42417.0,0.00057232]
[1646327753709,0.661823,42418.0,42417.0,0.0005]
[1646327757152,0.664823,42418.0,42416.0,0.0011]
[1646327757352,0.661823,42417.0,42414.0,0.0011]
[1646327757555,0.661823,42417.0,42409.0,0.00132422]
[1646327757556,0.058987,42415.0,42409.0,0.00612664]
[1646327757752,0.058987,42415.0,42409.0,0.00033633]
[1646327757753,0.20717922,42411.0,42409.0,0.00033633]
[1646327757952,0.661823,42410.0,42409.0,0.00011211]
[1646327758152,0.661823,42410.0,42400.0,0.0012]
[1646327758389,0.661823,42410.0,42407.0,0.0011]
[1646327758594,0.720826,42410.0,42407.0,0.0011]
[1646327758791,0.059003,42411.0,42407.0,0.0011]
[1646327758999,0.059003,42411.0,42410.0,0.00469031]
[1646327759193,0.377009,42412.0,42410.0,0.00469031]
[1646327759194,0.2,42412.0,42410.0,0.00469031]
[1646327759392,0.003,42415.0,42410.0,0.05189031]
[1646327759591,0.003,42415.0,42414.0,0.20103122]
[1646327759794,0.003,42415.0,42414.0,0.24823122]
[1646327759994,0.003,42415.0,42414.0,0.45525847]
[1646327760493,0.05,42423.0,42415.0,0.20240988]
[1646327760695,0.117931,42426.0,42422.0,0.00469031]
[1646327760893,0.058958,42427.0,42422.0,0.00469031]
[1646327761294,0.420781,42427.0,42422.0,0.00469031]
[1646327761502,0.361823,42426.0,42422.0,0.00469031]
[1646327761698,0.361823,42426.0,42415.0,0.004]
[1646327761896,0.117945,42423.0,42422.0,7.231e-05]
[1646327762358,0.117945,42423.0,42422.0,0.00014462]
[1646327762557,0.479768,42423.0,42422.0,0.00021693]
[1646327762756,0.30067849,42423.0,42422.0,0.00021693]
[1646327762953,0.30067849,42423.0,42422.0,7.231e-05]
[1646327763156,0.66650149,42423.0,42418.0,0.00469031]
[1646327763356,0.05898,42420.0,42412.0,0.00469031]
[1646327763557,0.117967,42416.0,42407.0,0.00579031]
[1646327763757,0.18606365,42414.0,42408.0,0.70736]
[1646327763955,0.24000001,42412.0,42408.0,0.353348]
[1646327764159,0.361823,42411.0,42408.0,0.353348]
[1646327764557,0.118003,42410.0,42408.0,0.34980268]
[1646327764758,0.361823,42409.0,42408.0,0.34980268]
[1646327768805,0.361823,42407.0,42406.0,0.0011]
[1646327769002,1.420841,42406.0,42404.0,0.0011]
[1646327769205,0.6,42405.0,42401.0,0.0022]
[1646327769406,0.3472,42404.0,42401.0,0.0022]
[1646327769640,0.361823,42403.0,42401.0,0.0022]
[1646327769845,0.60182301,42403.0,42401.0,0.0022]
[1646327770041,0.60182301,42403.0,42401.0,0.0011]
[1646327770042,0.661823,42402.0,42401.0,0.0011]
[1646327771044,0.42084,42401.0,42400.0,0.0012]
[1646327771244,0.72084,42401.0,42400.0,0.0012]
[1646327772244,0.55,42400.0,42394.0,0.0011]
[1646327772444,1.211823,42400.0,42394.0,0.0011]
[1646327772844,0.3,42400.0,42394.0,0.0011]
[1646327773045,0.661823,42400.0,42394.0,0.0011]
[1646327773296,0.665823,42400.0,42394.0,0.0011]
[1646327774502,0.656957,42399.0,42394.0,0.0011]
[1646327774704,0.1472,42398.0,42397.0,7.235e-05]
[1646327774902,1.0,42392.0,42390.0,0.0028]
[1646327775100,0.709023,42391.0,42390.0,0.0028]
[1646327775699,0.94902301,42391.0,42390.0,0.0028]
[1646327776301,0.94902301,42391.0,42390.0,0.0001]
[1646327776302,0.28720001,42391.0,42390.0,0.0001]
[1646327776504,0.24000001,42391.0,42390.0,0.0001]
[1646327776902,0.07851,42400.0,42391.0,1.28194598]
[1646327777151,0.07851,42400.0,42391.0,1.32914598]
[1646327777348,0.07851,42400.0,42398.0,0.00469031]
[1646327778244,0.07851,42400.0,42398.0,0.17204288]
[1646327778446,0.07851,42400.0,42397.0,7.217e-05]
[1646327778648,0.07851,42400.0,42397.0,0.00021651]
[1646327779247,0.08151,42400.0,42397.0,7.217e-05]
[1646327779447,0.08151,42400.0,42396.0,0.17819443]
[1646327779448,0.08151,42400.0,42399.0,0.00469031]
[1646327779647,0.07651,42400.0,42399.0,0.00469031]
[1646327780248,0.07651,42400.0,42399.0,0.19431862]
[1646327780451,0.07351,42400.0,42399.0,0.00469031]
[1646327781107,0.07551,42400.0,42399.0,0.00469031]
[1646327781506,0.07551,42400.0,42397.0,7.217e-05]
[1646327781705,0.07551,42400.0,42397.0,0.00014434]
[1646327781906,0.07551,42400.0,42397.0,0.00490682]
[1646327782306,0.07551,42400.0,42397.0,0.00483465]
[1646327782511,0.07351,42400.0,42397.0,0.00483465]
[1646327782705,0.07351,42400.0,42397.0,0.00476248]
[1646327782905,0.361823,42399.0,42397.0,0.00469031]
[1646327783105,0.07551,42400.0,42396.0,6.405e-05]
[1646327783708,0.07551,42400.0,42396.0,0.0001281]
[1646327783906,0.07551,42400.0,42399.0,0.19402397]
[1646327784107,0.07551,42400.0,42399.0,0.19871428]
[1646327784650,0.07351,42400.0,42399.0,0.19871428]
[1646327785256,0.07351,42400.0,42399.0,0.19971428]
[1646327786051,0.07351,42400.0,42399.0,0.00569031]
[1646327786554,0.07351,42400.0,42399.0,0.00469031]
[1646327786754,0.117993,42408.0,42399.0,0.00469031]
[1646327787156,0.006,42405.0,42401.0,0.20046521]
[1646327787357,0.006,42405.0,42404.0,0.00469031]
[1646327787756,0.006,42405.0,42404.0,0.05189031]
[1646327787959,0.006,42405.0,42404.0,0.35189031]
[1646327788396,0.05,42410.0,42404.0,0.39225445]
[1646327788597,0.006845,42419.0,42409.0,0.19563984]
[1646327789099,0.006845,42419.0,42408.0,0.05189031]
[1646327789100,0.361823,42417.0,42408.0,0.05189031]
[1646327789297,0.058983,42418.0,42408.0,0.05189031]
[1646327790298,0.058983,42418.0,42408.0,0.43824254]
[1646327790499,0.058983,42418.0,42408.0,0.23302728]
[1646327791099,0.058983,42418.0,42408.0,0.23402728]
[1646327791501,0.361823,42417.0,42412.0,0.17535238]
[1646327791702,0.058982,42420.0,42412.0,0.17535238]
[1646327791903,0.765877,42422.0,42412.0,0.17535238]
[1646327792542,0.17939069,42420.0,42412.0,0.17535238]
[1646327792746,0.765877,42422.0,42415.0,0.21525284]
[1646327792943,0.7069,42422.0,42415.0,0.21525284]
[1646327793843,0.16520826,42420.0,42409.0,0.3]
[1646327794043,0.16520826,42420.0,42408.0,0.04689031]
[1646327794446,0.7069,42422.0,42410.0,0.00028858]
[1646327794644,0.7069,42422.0,42410.0,0.00057716]
[1646327794845,0.7069,42422.0,42414.0,0.34234333]
[1646327795043,0.7069,42422.0,42414.0,0.17478599]
[1646327795644,0.7069,42422.0,42414.0,0.16238599]
[1646327796892,0.765879,42422.0,42414.0,0.16238599]
[1646327797093,0.7099,42422.0,42414.0,0.16238599]
[1646327797294,0.7099,42422.0,42415.0,0.0472]
[1646327797592,0.003,42422.0,42415.0,0.0472]
[1646327797992,0.003,42422.0,42419.0,0.04036414]
[1646327798194,0.003,42422.0,42421.0,0.22092927]
[1646327798392,0.025,42432.0,42421.0,0.22092927]
[1646327798592,0.025,42432.0,42422.0,0.0472]
[1646327798792,0.7069,42433.0,42422.0,0.3472]
[1646327799192,0.7069,42433.0,42423.0,0.21293777]
[1646327799392,0.05,42435.0,42424.0,0.0472]
[1646327799657,0.006704,42436.0,42428.0,0.20590099]
[1646327799956,0.006704,42436.0,42429.0,0.0472]
[1646327800554,0.006704,42436.0,42429.0,0.3472]
[1646327801157,0.007704,42436.0,42431.0,0.15]
[1646327801355,0.007704,42436.0,42435.0,0.04036414]
[1646327801557,0.007704,42436.0,42435.0,0.58913104]
[1646327801756,0.007704,42436.0,42435.0,1.68537891]
[1646327802454,0.006704,42436.0,42435.0,1.53279147]
[1646327802656,0.006704,42436.0,42435.0,1.59579589]
[1646327803060,0.14605915,42453.0,42437.0,0.02354]
[1646327803298,0.14605915,42453.0,42439.0,0.02354]
[1646327803299,0.05,42453.0,42439.0,0.02354]
[1646327803499,0.18941751,42452.0,42441.0,0.02354]
[1646327803700,0.05,42453.0,42441.0,0.07074]
[1646327803898,0.05,42453.0,42443.0,0.15714771]
[1646327804199,0.7069,42454.0,42447.0,0.18359717]
[1646327804400,0.70699769,42454.0,42447.0,0.18359717]
[1646327804705,0.70719307,42454.0,42447.0,0.18359717]
[1646327804899,0.00029307,42454.0,42447.0,0.18359717]
[1646327805203,1.3484,42462.0,42444.0,0.32354]
[1646327805204,0.7069,42462.0,42444.0,0.32354]
[1646327805402,0.7069,42462.0,42444.0,0.37074]
[1646327805603,0.765821,42462.0,42444.0,0.37074]
[1646327806000,9.77e-05,42455.0,42444.0,0.37074]
[1646327806199,0.0001954,42455.0,42446.0,0.02354]
[1646327806402,0.0002931,42455.0,42453.0,0.20854427]
[1646327806603,0.0001954,42455.0,42453.0,0.20854427]
[1646327806801,9.77e-05,42455.0,42453.0,0.20854427]
[1646327807048,0.7069,42462.0,42454.0,0.32354]
[1646327807248,0.9014,42470.0,42461.0,0.17489835]
[1646327807449,0.9014,42470.0,42454.0,0.37074]
[1646327807450,0.4926,42470.0,42454.0,0.37074]
[1646327807656,9.77e-05,42456.0,42454.0,0.37074]
[1646327807854,0.0001954,42456.0,42455.0,0.32354]
[1646327808155,0.0001954,42456.0,42455.0,1.08654]
[1646327808352,9.77e-05,42456.0,42455.0,1.11174286]
[1646327808558,0.2124,42477.0,42465.0,0.1734709]
[1646327808752,0.03584798,42477.0,42467.0,0.16447007]
[1646327808951,0.03584798,42477.0,42462.0,0.3]
[1646327809154,0.058904,42474.0,42461.0,0.07074]
[1646327809356,0.1757142,42471.0,42462.0,0.3]
[1646327809652,0.09475198,42477.0,42463.0,0.0472]
[1646327809653,0.03584798,42477.0,42463.0,0.0472]
[1646327809854,0.03584798,42477.0,42464.0,0.3]
[1646327810152,0.03584798,42477.0,42463.0,0.0472]
[1646327810354,0.03584798,42477.0,42464.0,0.3]
[1646327810551,0.03584798,42477.0,42466.0,0.19505883]
[1646327810806,0.00012391,42473.0,42463.0,0.0472]
[1646327811012,0.00024782,42473.0,42463.0,0.0472]
[1646327811203,0.00024782,42473.0,42466.0,0.002]
[1646327811204,0.00037173,42473.0,42466.0,0.002]
[1646327811605,0.00012391,42473.0,42466.0,0.002]
[1646327811807,0.058902,42476.0,42466.0,0.002]
[1646327812406,0.058902,42476.0,42464.0,0.3]
[1646327812606,0.058902,42476.0,42463.0,0.41584623]
[1646327812607,0.00014046,42472.0,42463.0,0.41584623]
[1646327812805,0.00021069,42472.0,42463.0,0.23322503]
[1646327813005,0.00014046,42472.0,42463.0,0.23322503]
[1646327813205,0.15840425,42473.0,42463.0,0.23722503]
[1646327814006,7.023e-05,42470.0,42463.0,0.0512]
[1646327814207,0.00014046,42470.0,42463.0,0.0512]
[1646327814408,0.00014046,42470.0,42457.0,0.3]
[1646327814409,0.00021069,42470.0,42458.0,0.01176]
[1646327814641,0.00014046,42470.0,42458.0,0.01176]
[1646327814847,7.023e-05,42470.0,42458.0,0.01176]
[1646327815043,0.18361806,42466.0,42458.0,0.01176]
[1646327815642,0.18371127,42466.0,42457.0,0.16900949]
[1646327815844,0.00018642,42466.0,42457.0,0.16900949]
[1646327816046,0.00027963,42466.0,42457.0,0.16900949]
[1646327816244,0.00018642,42466.0,42457.0,0.16900949]
[1646327816443,0.058912,42468.0,42457.0,0.16900949]
[1646327816845,0.1625478,42463.0,42457.0,0.16900949]
[1646327817046,0.058912,42468.0,42457.0,0.16900949]
[1646327817243,0.00018642,42464.0,42457.0,0.17400949]
[1646327817443,0.00027963,42464.0,42457.0,0.17400949]
[1646327817844,0.00018642,42464.0,42457.0,0.17400949]
[1646327818145,0.25837567,42468.0,42457.0,0.17400949]
[1646327818599,0.25837567,42468.0,42460.0,0.20553763]
[1646327818795,0.00018642,42463.0,42460.0,0.20553763]
[1646327818997,0.00018642,42463.0,42457.0,0.16900949]
[1646327818998,0.00027963,42463.0,42457.0,0.16900949]
[1646327819494,0.25837567,42468.0,42457.0,0.16900949]
[1646327819696,0.058912,42468.0,42457.0,0.16900949]
[1646327819895,0.765807,42472.0,42467.0,0.15955877]
[1646327820096,0.7069,42472.0,42467.0,0.15955877]
[1646327820899,0.7069,42472.0,42462.0,0.0472]
[1646327820900,0.87801534,42472.0,42465.0,0.19132745]
[1646327821102,0.93692234,42472.0,42459.0,0.0472]
[1646327821296,0.93792234,42472.0,42462.0,0.001]
[1646327822044,0.00024782,42471.0,42462.0,0.001]
[1646327822244,0.00037173,42471.0,42462.0,0.001]
[1646327822445,0.00024782,42471.0,42462.0,0.001]
[1646327822645,0.11795391,42471.0,42451.0,0.0472]
[1646327822846,0.058914,42469.0,42448.0,0.4996]
[1646327823044,0.16615394,42464.0,42449.0,0.181]
[1646327823247,0.16615394,42464.0,42452.0,0.01676]
[1646327823647,0.16631664,42464.0,42459.0,0.16608909]
[1646327823844,0.16639799,42464.0,42459.0,0.16608909]
[1646327824244,0.22515529,42464.0,42459.0,0.16608909]
[1646327824446,0.28399394,42464.0,42459.0,0.16608909]
[1646327824648,0.361823,42462.0,42452.0,0.01176]
[1646327825046,0.409023,42462.0,42452.0,0.01176]
[1646327825245,0.058934,42460.0,42452.0,0.01176]
[1646327825446,0.18888138,42454.0,42452.0,0.01176]
[1646327825646,0.361823,42453.0,42452.0,0.01176]
[1646327826902,0.361823,42454.0,42452.0,0.01176]
[1646327827601,0.05893,42457.0,42452.0,0.01176]
[1646327827602,0.361823,42457.0,42452.0,0.01176]
[1646327828001,0.361823,42456.0,42452.0,0.01176]
[1646327828204,0.007,42458.0,42449.0,0.16719331]
[1646327828205,8.481e-05,42455.0,42449.0,0.16719331]
[1646327828403,0.00016962,42455.0,42450.0,0.21578968]
[1646327828605,0.00025443,42455.0,42450.0,0.21578968]
[1646327828804,0.00016962,42455.0,42450.0,0.21578968]
[1646327829003,8.481e-05,42455.0,42450.0,0.21578968]
[1646327829301,0.001,42460.0,42458.0,0.16973443]
[1646327829539,0.361823,42459.0,42458.0,0.16973443]
[1646327829940,8.481e-05,42455.0,42450.0,0.003]
[1646327830540,8.481e-05,42455.0,42445.0,0.02354]
[1646327830842,0.058922,42462.0,42445.0,0.73934]
[1646327831039,0.361823,42461.0,42452.0,0.41892846]
[1646327831241,0.00012392,42455.0,42452.0,0.41892846]
[1646327831446,0.00012392,42455.0,42452.0,0.21839861]
[1646327831447,0.00024784,42455.0,42452.0,0.21839861]
[1646327831641,0.00037176,42455.0,42452.0,0.21839861]
[1646327831843,0.00024784,42455.0,42452.0,0.21839861]
[1646327832042,0.00012392,42455.0,42452.0,0.21839861]
[1646327832243,0.32233687,42462.0,42452.0,0.21839861]
[1646327832843,0.00012392,42456.0,42452.0,0.21839861]
[1646327833043,0.00037176,42456.0,42452.0,0.21839861]
[1646327833497,0.00024784,42456.0,42452.0,0.21839861]
[1646327833701,0.058928,42457.0,42447.0,0.002]
[1646327833998,0.058928,42457.0,42448.0,0.17236927]
[1646327834196,0.05864423,42457.0,42440.0,0.02354]
[1646327834396,6.78e-05,42456.0,42440.0,0.02354]
[1646327834596,0.0002034,42456.0,42443.0,0.93989335]
[1646327834796,0.0002034,42456.0,42446.0,0.1700096]
[1646327834996,0.0001356,42456.0,42446.0,0.1700096]
[1646327835196,0.76554423,42457.0,42446.0,0.1700096]
[1646327835397,0.76554423,42457.0,42449.0,0.16912841]
[1646327835597,0.76554423,42457.0,42453.0,0.18984908]
[1646327836198,0.0001356,42454.0,42453.0,0.18984908]
[1646327836399,0.0002034,42454.0,42453.0,0.18984908]
[1646327836602,6.78e-05,42454.0,42453.0,0.18984908]
[1646327836800,0.76554423,42457.0,42453.0,0.18984908]
[1646327837246,0.76554423,42457.0,42453.0,0.19084908]
[1646327837645,0.76566815,42457.0,42453.0,0.19084908]
[1646327837849,0.76579207,42457.0,42453.0,0.19084908]
[1646327838047,0.76591599,42457.0,42453.0,0.19084908]
[1646327838453,0.00012392,42457.0,42453.0,0.19084908]
[1646327838651,0.7069,42467.0,42454.0,0.78654]
[1646327839046,0.1813,42471.0,42454.0,0.78654]
[1646327839249,0.05,42472.0,42466.0,0.16451863]
[1646327839447,0.918,42478.0,42466.0,0.16451863]
[1646327839647,0.3,42477.0,42466.0,0.38177275]
[1646327839848,0.361823,42475.0,42466.0,0.16451863]
[1646327840049,0.3,42474.0,42461.0,0.0472]
[1646327840249,0.058896,42475.0,42461.0,0.0472]
[1646327840450,0.3,42474.0,42461.0,0.0472]
[1646327840900,0.3,42474.0,42465.0,0.20919909]
[1646327840901,0.00012391,42470.0,42465.0,0.20919909]
[1646327841104,0.00037173,42470.0,42463.0,0.16228553]
[1646327841602,0.00024782,42470.0,42463.0,0.16228553]
[1646327841806,0.3,42474.0,42463.0,0.16228553]
[1646327842005,0.058901,42475.0,42468.0,0.16314796]
[1646327842201,0.058901,42475.0,42463.0,0.16228553]
[1646327842404,9.282e-05,42469.0,42463.0,0.16228553]
[1646327842603,0.00018564,42469.0,42463.0,0.16228553]
[1646327842803,0.00027846,42469.0,42463.0,0.16228553]
[1646327843004,0.00018564,42469.0,42463.0,0.16228553]
[1646327843204,9.282e-05,42469.0,42463.0,0.16228553]
[1646327843407,0.3,42476.0,42463.0,0.88108553]
[1646327843607,0.3,42476.0,42463.0,0.95855553]
[1646327843807,0.3,42476.0,42463.0,0.26629553]
[1646327844004,9.282e-05,42468.0,42463.0,0.26629553]
[1646327844205,0.00018564,42468.0,42463.0,0.26629553]
[1646327844407,0.00027846,42468.0,42463.0,1.02929553]
[1646327844645,0.00018564,42468.0,42463.0,1.02629553]
[1646327844845,0.27872758,42475.0,42463.0,0.12467]
[1646327845043,0.27872758,42475.0,42463.0,0.0472]
[1646327845044,0.21982558,42475.0,42463.0,0.0472]
[1646327845245,0.15414806,42468.0,42463.0,0.0472]
[1646327845446,0.3,42476.0,42463.0,0.0472]
[1646327845645,8.652e-05,42468.0,42463.0,0.0472]
[1646327845847,0.05916856,42468.0,42459.0,0.01176]
[1646327846047,0.3,42467.0,42459.0,0.01176]
[1646327846248,0.3,42467.0,42460.0,0.7065]
[1646327846446,0.05899552,42468.0,42460.0,0.7065]
[1646327846650,0.058909,42468.0,42460.0,0.7065]
[1646327846847,0.058909,42468.0,42462.0,0.15765766]
[1646327847051,0.824711,42471.0,42462.0,0.15765766]
[1646327847250,8.652e-05,42466.0,42462.0,0.15765766]
[1646327847453,0.00017304,42466.0,42463.0,0.20918406]
[1646327847648,0.00025956,42466.0,42463.0,0.20918406]
[1646327847852,0.00017304,42466.0,42463.0,0.20918406]
[1646327848152,0.7069,42471.0,42463.0,0.20918406]
[1646327848404,0.7069,42471.0,42468.0,0.21312528]
[1646327849406,0.058899,42475.0,42468.0,0.21312528]
[1646327850407,0.058899,42475.0,42470.0,0.20725049]
[1646327850606,0.00012391,42474.0,42470.0,0.20725049]
[1646327850808,0.00037173,42474.0,42470.0,0.20725049]
[1646327851208,0.00024782,42474.0,42468.0,0.21312528]
[1646327851409,0.00712391,42474.0,42468.0,0.21312528]
[1646327851609,0.007,42474.0,42468.0,0.21312528]
[1646327851810,0.007,42474.0,42462.0,0.0472]
[1646327852052,0.00012391,42473.0,42462.0,0.0472]
[1646327852261,0.00024782,42473.0,42462.0,0.0472]
[1646327852452,0.18886702,42472.0,42465.0,0.15413063]
[1646327852653,0.18886702,42472.0,42462.0,0.0472]
[1646327852853,0.058905,42471.0,42462.0,0.0472]
[1646327853054,0.058905,42471.0,42460.0,0.7065]
[1646327853055,0.058912,42469.0,42460.0,0.7065]
[1646327853454,0.21478753,42465.0,42460.0,0.7065]
[1646327853655,0.361823,42464.0,42460.0,0.7065]
[1646327853854,0.361823,42463.0,42461.0,0.16972545]
[1646327854057,0.361823,42463.0,42460.0,0.7065]
[1646327854256,0.117839,42464.0,42460.0,0.7065]
[1646327854257,0.361823,42461.0,42460.0,0.7065]
[1646327857396,0.367823,42461.0,42460.0,0.7065]
[1646327858196,0.93289884,42461.0,42460.0,0.352873]
[1646327858695,0.93289884,42461.0,42446.0,0.19702134]
[1646327858896,0.479691,42457.0,42447.0,0.16473688]
[1646327859098,0.479691,42457.0,42446.0,0.19702134]
[1646327859099,0.17135657,42452.0,42446.0,0.19702134]
[1646327859295,0.361823,42455.0,42446.0,0.19802134]
[1646327859557,0.361823,42454.0,42446.0,0.19802134]
[1646327859959,0.362059,42454.0,42446.0,0.19802134]
[1646327860159,0.42111,42454.0,42446.0,0.19802134]
[1646327860360,0.42111,42454.0,42446.0,0.001]
[1646327860564,0.52469065,42452.0,42446.0,0.001]
[1646327860764,0.15,42448.0,42446.0,0.001]
[1646327860962,0.15,42448.0,42425.0,0.5391]
[1646327860963,0.02354,42446.0,42425.0,0.5391]
[1646327861160,0.709023,42447.0,42425.0,0.5391]
[1646327861161,0.385363,42443.0,42425.0,0.5391]
[1646327861362,0.361823,42441.0,42426.0,0.16846071]
[1646327861560,0.467979,42441.0,42426.0,0.36506444]
[1646327861763,0.106156,42441.0,42426.0,0.36506444]
[1646327861962,0.058956,42439.0,42426.0,0.36506444]
[1646327862160,0.661823,42438.0,42426.0,0.36506444]
[1646327862362,0.661823,42438.0,42426.0,0.19880373]
[1646327862567,0.720782,42438.0,42426.0,0.19880373]
[1646327862763,0.17176171,42434.0,42426.0,0.19880373]
[1646327862962,0.361823,42433.0,42426.0,0.19880373]
[1646327863161,0.420791,42431.0,42426.0,0.19880373]
[1646327863398,0.420791,42431.0,42426.0,0.0022]
[1646327863599,0.058971,42430.0,42426.0,0.0022]
[1646327863801,0.661823,42429.0,42426.0,0.0022]
[1646327863999,0.058971,42430.0,42426.0,0.0022]
[1646327864000,0.361823,42427.0,42426.0,0.0022]
[1646327865599,0.361823,42431.0,42426.0,0.0022]
[1646327865799,0.361823,42431.0,42426.0,0.20184628]
[1646327866001,0.361823,42431.0,42428.0,0.19610244]
[1646327866204,0.420788,42431.0,42426.0,0.0022]
[1646327867064,0.361823,42429.0,42426.0,0.0022]
[1646327867268,0.479772,42429.0,42426.0,0.0022]
[1646327867464,0.538742,42429.0,42426.0,0.0022]
[1646327867665,0.361823,42429.0,42426.0,0.0022]
[1646327868868,0.538741,42429.0,42426.0,0.0022]
[1646327869069,0.361823,42427.0,42426.0,0.0022]
[1646327870909,0.025,42436.0,42426.0,0.0022]
[1646327870910,0.0722,42436.0,42426.0,0.0022]
[1646327871111,0.361823,42435.0,42426.0,0.0022]
[1646327871308,0.361823,42435.0,42424.0,0.19175853]
[1646327871309,0.007,42432.0,42424.0,0.19175853]
[1646327871508,0.361823,42431.0,42427.0,0.15644888]
[1646327872508,0.007,42432.0,42427.0,0.15644888]
[1646327872709,0.058959,42436.0,42427.0,0.15644888]
[1646327872912,0.361823,42435.0,42427.0,0.15644888]
[1646327874208,0.058959,42436.0,42427.0,0.15644888]
[1646327875666,0.361823,42435.0,42424.0,0.19175853]
[1646327875863,0.058965,42431.0,42424.0,0.19175853]
[1646327876263,0.058965,42431.0,42424.0,0.00085209]
[1646327876665,0.058965,42431.0,42425.0,0.21936969]
[1646327877468,0.001,42431.0,42425.0,0.21936969]
[1646327877669,0.001,42431.0,42427.0,0.19855701]
[1646327878726,0.05896,42435.0,42427.0,0.19855701]
[1646327878926,0.361823,42434.0,42427.0,0.19855701]
[1646327880733,0.117915,42440.0,42427.0,0.19855701]
[1646327880734,0.025,42441.0,42427.0,0.19855701]
[1646327880934,0.108951,42442.0,42427.0,0.19855701]
[1646327881131,0.361823,42441.0,42435.0,0.02580417]
[1646327881531,0.362823,42441.0,42435.0,0.02580417]
[1646327882369,0.362823,42441.0,42435.0,0.02572592]
[1646327882670,0.361823,42438.0,42435.0,0.02572592]
[1646327883067,0.420779,42438.0,42435.0,0.02572592]
[1646327883472,0.423779,42438.0,42435.0,0.02572592]
[1646327883768,0.361823,42436.0,42435.0,0.02572592]
[1646327885367,0.366823,42436.0,42435.0,0.02572592]
[1646327886608,0.361823,42436.0,42435.0,0.02572592]
[1646327891490,0.365823,42436.0,42435.0,0.02572592]
[1646327892692,0.117894,42444.0,42435.0,0.02572592]
[1646327892894,0.361823,42443.0,42435.0,0.02572592]
[1646327893093,0.117894,42444.0,42435.0,0.02572592]
[1646327893341,0.058947,42444.0,42435.0,0.02572592]
[1646327893539,0.35785137,42445.0,42439.0,0.20785412]
[1646327893741,0.058948,42443.0,42435.0,0.02572592]
[1646327894737,0.058948,42443.0,42439.0,0.19393319]
[1646327894941,0.361826,42442.0,42439.0,0.19393319]
[1646327895937,0.361826,42442.0,42437.0,0.19274042]
[1646327896138,0.117895,42443.0,42437.0,0.19274042]
[1646327896341,0.361826,42442.0,42437.0,0.19274042]
[1646327896542,0.117895,42443.0,42435.0,0.02572592]
[1646327896940,0.361826,42442.0,42435.0,0.02572592]
[1646327897178,0.117895,42443.0,42435.0,0.02572592]
[1646327897385,0.361826,42442.0,42435.0,0.02572592]
[1646327897584,0.361826,42440.0,42435.0,0.02572592]
[1646327898180,0.21091377,42437.0,42435.0,0.02572592]
[1646327898379,0.117911,42441.0,42435.0,0.02572592]
[1646327898380,0.361826,42436.0,42435.0,0.02572592]
[1646327898580,0.05995469,42443.0,42435.0,0.02572592]
[1646327898581,0.001,42443.0,42435.0,0.02572592]
[1646327898782,0.361826,42442.0,42435.0,0.02572592]
[1646327899381,0.361826,42440.0,42435.0,0.02572592]
[1646327899780,0.479745,42440.0,42435.0,0.02572592]
[1646327900810,0.526945,42440.0,42435.0,0.02572592]
[1646327901018,0.2097005,42439.0,42435.0,0.02572592]
[1646327901216,0.47975949,42438.0,42435.0,0.02572592]
[1646327901411,0.52695949,42438.0,42435.0,0.02572592]
[1646327902615,1.0,42436.0,42424.0,0.00085209]
[1646327902814,0.058982,42432.0,42424.0,0.00085209]
[1646327903012,0.11796215,42434.0,42424.0,0.00085209]
[1646327903013,0.21603821,42428.0,42424.0,0.00085209]
[1646327903215,0.21201417,42426.0,42422.0,0.0011]
[1646327903412,0.21201417,42426.0,42418.0,0.0022]
[1646327903413,0.409026,42425.0,42419.0,0.0033]
[1646327903615,0.356826,42422.0,42419.0,0.0033]
[1646327903817,0.361826,42420.0,42419.0,0.0033]
[1646327904012,0.9,42419.0,42418.0,0.0022]
[1646327904215,0.509033,42419.0,42418.0,0.0022]
[1646327905096,2.78513314,42419.0,42418.0,0.0022]
[1646327905493,2.78913314,42419.0,42418.0,0.0022]
[1646327906096,2.78913314,42419.0,42410.0,0.00387576]
[1646327906097,0.117997,42417.0,42410.0,0.00416364]
[1646327906297,0.409033,42416.0,42410.0,0.00416364]
[1646327906496,0.409033,42416.0,42410.0,0.00387576]
[1646327906698,0.409033,42416.0,42410.0,0.00358788]
[1646327906898,0.409033,42416.0,42410.0,0.0033]
[1646327908803,0.509033,42416.0,42410.0,0.0033]
[1646327910905,0.361833,42414.0,42410.0,0.0033]
[1646327911106,0.420842,42412.0,42410.0,0.0033]
[1646327911306,0.568042,42412.0,42410.0,0.0033]